{"text_format":"1","workbook":"xlsx","n_sheets":4,"sheets":["Hoja1","Hoja2","Base_datos","D1"],"not_rendered":{"charts":0,"images":2,"macros":1,"external_links":2,"defined_names":4,"comments":0,"pivot_tables":0},"unopened":[],"bounds":{"document_bytes":16777216,"sheet_cells":100000,"rows_first":2000,"rows_last":500,"rows_between":2000,"halvings":0,"cell_chars":16384,"cell_head_chars":4096},"cells_cut":0,"cells_raw":0,"read":"whole","date_system":"1900"}

{"sheet":"Hoja1","index":0,"n_rows":137,"n_cols":13,"rows_kept":137,"cut":false,"hidden":false,"merged":[[20,11,20,13],[34,1,34,15],[36,7,36,8],[36,1,36,3],[72,1,72,5],[86,1,86,10],[87,1,87,10],[88,1,88,10],[86,11,86,12],[87,11,87,12],[88,11,88,12],[112,1,112,3],[94,4,94,9],[37,4,37,6],[38,4,38,6],[109,2,109,3],[96,1,102,1],[96,2,96,3],[97,2,97,3],[98,2,98,3],[99,2,99,3],[100,2,100,3],[101,2,101,3],[89,1,89,10],[90,1,90,10],[116,1,123,15],[136,3,136,6],[39,1,39,3],[40,1,40,3],[41,1,41,3],[40,7,40,8],[41,7,41,8],[39,4,39,6],[40,4,40,6],[41,4,41,6],[44,12,44,13],[136,1,136,2],[127,2,127,14],[128,2,128,14],[129,2,129,14],[125,1,125,15],[130,2,130,14],[132,2,132,14],[133,2,133,14],[102,2,102,3],[136,10,136,12],[13,10,13,11],[13,1,13,2],[13,6,13,7],[94,1,95,3],[44,2,44,11],[49,1,49,11],[22,1,22,15],[23,1,32,15],[52,1,52,15],[53,1,60,15],[62,1,62,15],[37,1,37,3],[38,1,38,3],[38,7,38,8],[39,7,39,8],[16,4,16,13],[17,4,17,13],[18,4,18,13],[19,4,19,13],[20,5,20,6],[20,8,20,9],[0,1,0,15],[1,1,1,15],[3,1,3,15],[9,12,9,15],[4,1,4,15],[9,1,9,3],[9,4,9,7],[10,1,10,3],[10,4,10,7],[9,8,9,11],[10,8,10,11],[6,11,6,15],[6,6,6,10],[6,1,6,5],[7,1,7,5],[7,6,7,10],[7,11,7,15],[2,1,2,15],[10,12,10,15],[36,4,36,6],[110,1,111,1],[110,2,110,3],[111,2,111,3],[103,1,109,1],[103,2,103,3],[104,2,104,3],[105,2,105,3],[106,2,106,3],[107,2,107,3],[108,2,108,3],[74,1,74,5],[84,1,84,15],[43,1,43,15],[63,1,70,15],[37,7,37,8],[92,1,92,12],[89,11,89,12],[90,11,90,12],[49,12,49,13],[45,12,45,13],[46,12,46,13],[47,12,47,13],[48,12,48,13],[45,2,45,11],[46,2,46,11],[47,2,47,11],[48,2,48,11]]}
[null,"MINISTERIO DE HACIENDA Y CREDITO PUBLICO "]
[null,"DIRECCION GENERAL DE INVERSION PUBLICA "]
[null,"FICHA TÉCNICA  DE PROYECTO DE INVERSIÓN PUBLICA PARA EJECUCIÓN"]
[null,"MONTOS <= 500,000 USD"]
[null,"I.   DATOS GENERALES"]
[null,"1.1. NOMBRE DEL PROYECTO"]
[null,"PROCESO",null,null,null,null,"OBJETO",null,null,null,null,"LOCALIZACIÓN"]
[]
[null,"1.2. INSTITUCION PROPONENTE  Y MONTO "]
[null,"NOMBRE ",null,null,"SECTOR",null,null,null,"SUB-SECTOR",null,null,null,"MONTO DE INVERSION (USD)"]
[]
[]
[null,"1.3. PERIODO DE INVERSIÓN"]
[null,"Fecha de inicio",null,null,null,null,"Fecha de finalización",null,null,null,"Fecha de operación"]
[]
[null,"1.4. UBICACIÓN GEOGRÁFICA"]
[null,"Departamento/Región "]
[null,"Municipio "]
[null,"Distrito"]
[null,"Comarca "]
[null,"Coordenadas UTM - WGS84 y cota",null,null,"(X):",null,null,"(Y):",null,null,"Cota (msnm):"]
[]
[null,"1.5 DESCRIPCION DE LA SITUACIÓN ACTUAL DEL SERVICIO"]
[]
[]
[]
[]
[]
[]
[]
[]
[]
[]
[]
[null,"1.6 ¿EL AREA DONDE SE UBICA EL PROYECTO HA SIDO AFECTADA POR ALGUN DESASTRE?"]
[]
[null,"Amenaza",null,null,"Exposición",null,null,"Vulnerabilidad"]
[]
[]
[]
[]
[]
[]
[null,"1.7 MEDIDAS CONSIDERADAS EN EL PROYECTO PARA REDUCIR EL RIESGO DE DESASTRE"]
[null,"Medidas ","Descripción",null,null,null,null,null,null,null,null,null,"MONTO USD"]
[null,"Medida 1: "]
[null,"Medida 2: "]
[null,"Medida 3: "]
[null,"Medida 4: "]
[null,"TOTAL",null,null,null,null,null,null,null,null,null,null,{"$f":"SUM(M46:N49)","v":0}]
[]
[]
[null,"1.8 DESCRIPCION DEL ALCANCE DEL PROYECTO"]
[]
[]
[]
[]
[]
[]
[]
[]
[]
[null,"1.9 DESCRIPCION DE LOS BENEFICIOS ESPERADOS"]
[]
[]
[]
[]
[]
[]
[]
[]
[]
[null,"Beneficiarios del Proyecto al Primer Año de Operación",null,null,null,null,"TOTAL",null,"Hombres",null,null,"Mujeres"]
[]
[null,"1.10 COSTOS DEL PROYECTO"]
[null,"Categorias",{"$f":"+D14","v":0},{"$f":"+C76+1","v":1},{"$f":"+D76+1","v":2},"Total"]
[null,"Preinversión",null,null,null,{"$f":"+SUM(C77:E77)","v":0}]
[null,"Infraestructura",null,null,null,{"$f":"+SUM(C78:E78)","v":0}]
[null,"Equipamiento",null,null,null,0]
[null,"Medidas RRD y ACC",null,null,null,0]
[null,"Administración",null,null,null,0]
[null,"Supervisión",null,null,null,0]
[null,"Total",{"$f":"SUM(C77:C82)","v":0},{"$f":"SUM(D77:D82)","v":0},0,{"$f":"+SUM(C83:E83)","v":0}]
[]
[null,"1.11 DESCRIPCIÓN DE LOS ESTUDIOS DE INVERSIÓN "]
[]
[null,"Estudios considerados en el proyecto para su ejecución",null,null,null,null,null,null,null,null,null,"MONTO (USD)"]
[]
[]
[]
[null,"TOTAL",null,null,null,null,null,null,null,null,null,{"$f":"SUM(M88:M90)","v":0}]
[]
[null,"1.12 COSTOS DE OPERACIÓN Y MANTENIMIENTO CON Y SIN PROYECTO"]
[]
[null,"Costos",null,null,"Años (USD)"]
[null,null,null,null,{"$f":"+M14","v":0},{"$f":"+E96+1","v":1},{"$f":"+F96+1","v":2},3,4,"TOTAL"]
[null,"Sin Proyecto","OPERACIÓN",null,{"$f":"SUM(E98:E101)","v":0},{"$f":"SUM(F98:F101)","v":0},0,0,0,{"$f":"SUM(E97:I97)","v":0}]
[null,null,"Personal",null,null,null,null,null,null,{"$f":"SUM(E98:I98)","v":0}]
[null,null,"Bienes",null,null,null,null,null,null,0]
[null,null,"Servicios",null,null,null,null,null,null,0]
[null,null,"Otros"]
[null,null,"MANTENIMIENTO",null,{"$f":"+E103","v":0},{"$f":"+F103","v":0},0,0,0,0]
[null,null,"Actividades",null,null,null,null,null,null,0]
[null,"Con Proyecto","OPERACIÓN",null,{"$f":"SUM(E105:E108)","v":0},{"$f":"SUM(F105:F108)","v":0},0,0,0,0]
[null,null,"Personal",null,null,null,null,null,null,0]
[null,null,"Bienes",null,null,null,null,null,null,0]
[null,null,"Servicios",null,null,null,null,null,null,0]
[null,null,"Otros",null,null,null,null,null,null,0]
[null,null,"MANTENIMIENTO",null,{"$f":"+E110","v":0},{"$f":"+F110","v":0},0,0,0,0]
[null,null,"Actividades",null,null,null,null,null,null,0]
[null,"Incremental","OPERACIÓN",null,null,null,{"$f":"G104-G97","v":0},0,0,0]
[null,null,"MANTENIMIENTO",null,null,null,{"$f":"G109-G102","v":0},0,0,0]
[null,"TOTAL",null,null,{"$f":"E111+E112","v":0},{"$f":"F111+F112","v":0},0,0,0,0]
[]
[]
[null,"1.13 DESCRIPCIÓN DE LA SITUACION LEGAL DEL TERRENO"]
[]
[]
[]
[]
[]
[]
[]
[]
[]
[null,"1.14 ANEXOS"]
[null,null,"Indicar relación de anexos a adjuntar a la Ficha Técnica."]
[]
[]
[]
[]
[]
[]
[]
[]
[]
[null,"Fecha de elaboración:",null,null,null,null,null,null,null,"FIRMA"]

{"sheet":"Hoja2","index":1,"n_rows":18,"n_cols":8,"rows_kept":18,"cut":false,"hidden":false,"merged":[]}
["Procesos","Años","Zona","Opción","Saneamiento","Amenaza","Exposición/Vulnerabilidad","Modalidad de contratación"]
[null,2019,"Urbana","Si","No iniciado","Deslizamiento","Alto","Administración Directa"]
["Adquisición",2020,"Rural","No","En gestión","Inundaciones","Moderado","Por Contrato"]
["Ampliación",2021,null,null,"En gestión avanzada","Sismos","Bajo","Llave en mano"]
["Conservación",2022,null,null,"Registrada","Erupción volcanica"]
["Construcción",null,null,null,null,"Huracanes"]
["Conversión",null,null,null,null,"Sequía"]
["Equipamiento",null,null,null,null,"Tsunamí"]
["Explotación"]
["Habilitación"]
["Instalación"]
["Mejoramiento "]
["Mejoramiento y Equipamiento"]
["Normalización"]
["Reemplazo "]
["Reemplazo y equipamiento"]
["Rehabilitación"]
["Rehabilitación y equipamiento"]

{"sheet":"Base_datos","index":2,"n_rows":45,"n_cols":35,"rows_kept":45,"cut":false,"hidden":true,"merged":[]}
[null,null,"INDICADORES","NATURALEZA","PROBLEMA CENTRAL","INDICADOR","INDICADOR 2","OBJETIVO CENTRAL"]
[null,null,null,null,null,null,null,null,"AÑO 0","Nivel","Zona","Inicial","Primaria","Secundaria","Tipo","Inicial","Primaria","Secundaria","Turno",null,"Tipo docente","Inicial","Primaria","Secundaria","Documentos de propiedad"]
[1,"% de la infraestructura en buen estado ","% de la infraestructura en buen estado ",null,"Población en edad escolar con limitado acceso a servicios educativos.","Tasa total de matrícula","-","Población en edad escolar con adecuado acceso a servicios educativos.",2017,"Inicial","Rural",20,30,30,"Bipersonales rural",10,15,15,"SI",null,"Polidocente",3,6,5,"Certitifcado de Posesión"]
[2,"% de equipamiento en buen estado","% de la infraestructura en mal estado",null,"Población en edad escolar con limitado e inadecuado acceso al servicio educativo","Tasa total de matrícula","% de estudiantes adecuadamente atendidos.","Población en edad escolar con mayor y adecuado acceso al servicio educativo",2018,"Primaria","Urbana",25,35,35,"Bipersonales urbana",12.5,17.5,17.5,"NO",null,"Unidocente",1,1,1,"Actas de Donación"]
[3,"% del personal con adecuadas capacidades","% de equipamiento en buen estado",null,"La población accede a servicios que no cumplen estándares sectoriales.","% de estudiantes adecuadamente atendidos.","-","La población accede a servicios que cumplen estándares sectoriales.",2019,"Secundaria",null,null,null,null,"Unipersonales rural",20,30,30,null,null,null,null,null,null,"Actas de Convenio de Cesión en Uso"]
[4,"% de intrumentos de gestión de mantenimiento adecuados en la IE","% de equipamiento en mal estado",null,"Población educativa con inadecuado acceso al servicio educativo","% de estudiantes adecuadamente atendidos.","-","Población educativa con adecuado acceso al servicio educativo",2020,null,null,null,null,null,"Unipersonales urbana",25,35,35,null,null,null,null,null,null,"Otro documento de propiedad"]
[5,"% de intrumentos de gestión de la información pedagógica de la IE","% del personal con adecuadas capacidades",null,null,null,null,null,2021,null,null,null,null,null,null,null,null,null,null,null,null,null,null,null,"No se disponde de documento de propiedad"]
[null,"% de intrumentos de gestión de la información institucional de la IE","% de personal con inadecuadas capacidades",null,null,null,null,null,2022]
[null,null,"% de intrumentos de gestión de mantenimiento adecuados en la IE",null,null,null,null,null,2023]
[null,null,"% de intrumentos de gestión de la información pedagógica de la IE",null,null,null,null,null,2024]
[null,null,"% de intrumentos de gestión de la información institucional de la IE",null,null,null,null,null,2025,null,null,null,null,null,null,null,"Tipo de intervención",null,null,null,"Nombre d ela oficina"]
[null,null,null,null,null,null,null,null,2026,null,null,null,null,null,null,null,"CALIDAD",null,null,null,"REGISTROS PÚBLICOS"]
[null,null,null,null,null,null,null,null,2027,null,null,null,null,null,null,null,"COBERTURA",null,null,null,"UGEL"]
[null,null,null,null,null,null,null,null,2028,null,null,null,null,null,null,null,"CALIDAD Y COBERTURA",null,null,null,"MINEDU"]
[null,null,null,null,null,null,null,null,2029,null,null,null,null,null,null,null,null,null,null,null,"DRE"]
[null,null,null,"NATURALEZA",null,null,null,null,2030,null,null,null,null,null,null,null,null,null,null,null,"GOBIERNO REGIONAL"]
[null,null,null,"CREACION","MEJORAMIENTO","AMPLIACIÓN","MEJORAMIENTO Y AMPLIACIÓN","RECUPERACIÓN",2031,null,null,null,null,null,null,null,null,null,null,null,"GOBIERNO MUNICIPAL"]
[null,null,"PROBLEMA CENTRAL","Población en edad escolar con limitado acceso a servicios educativos.","La población accede a servicios que no cumplen estándares sectoriales.","Población en edad escolar con limitado acceso a servicios educativos.","Población en edad escolar con limitado e inadecuado acceso al servicio educativo","La población accede a servicios que no cumplen estándares sectoriales.",2032,null,null,null,null,null,null,null,null,null,null,null,"GOBIERNO CENTRAL"]
[null,null,"CAUSA DIRECTA 1","Limitada oferta educativa","Inadecuada oferta educativa","Limitada oferta educativa","Inadecuada e insuficiente oferta educativa","Inadecuada oferta educativa",2033,null,null,null,null,null,null,null,null,null,null,null,"PRIVADO"]
[null,null,"CAUSA DIRECTA 2","Inadecuada gestión de los servicios educativos","Inadecuada gestión de los servicios educativos","Inadecuada gestión de los servicios educativos","Inadecuada gestión de los servicios educativos","Inadecuada gestión de los servicios educativos",2034,null,null,null,null,null,null,null,null,null,null,null,"ONG"]
[null,null,null,null,null,null,null,null,2035,null,null,null,null,null,null,null,null,null,null,null,"OTROS"]
[null,null,null,null,null,null,null,null,2036,null,null,null,null,null,null,null,null,null,null,null,"NO PRESENTA"]
[null,null,"MEDIOS FUNDAMENTALES","Adecuada localización de la IE","Infraestructura  cumple con estándares normativos","Suficiente infraestructura educativa","Equipamiento educativo adecuado ","Suficiente equipamiento educativo","Suficiente y adecuada infraestructura educativa","Suficiente y adecuado equipamiento educativo","Adecuadas capacidades pedagógicas docente","Adecuada gestión de la información educativa (matrícula, indicadores educativos)","Adecuada gestión de la información institucional (inventario de equipos, mobiliario, seguimiento desempeño pedagógico,otros)"]
[null,null,"ACCIÓN 1","Intervención en ambientes pedagógicos","Intervención en ambientes pedagógicos","Construcción de ambientes pedagógicos","Implementación de equipamiento educativo","Implementación de equipamiento educativo","Construcción de ambientes pedagógicos","Implementación de equipamiento educativo","Capacitación al personal docente","Protocolo de gestión de información educativa","Protocolo de gestión de información institucional"]
[null,null,"ACCIÓN 2","Intervención en ambientes administrativos","Intervención en ambientes administrativos","Construcción de ambientes administrativos","Implementación de equipamiento administrativo","Implementación de equipamiento administrativo","Construcción de ambientes administrativos","Implementación de equipamiento administrativo","No requiere","No requiere","No requiere"]
[null,null,"ACCIÓN 3","Intervención de ambientes complementarios","Intervención de ambientes complementarios","Construcción de ambientes complementarios","Programa de operación y mantenimiento del equipamiento","Programa de operación y mantenimiento del equipamiento","Construcción de ambientes complementarios","Programa de operación y mantenimiento del equipamiento","No requiere","No requiere","No requiere"]
[null,null,"ACCIÓN 4","Intervención de ambientes exteriores","Intervención de ambientes exteriores","Construcción de ambientes exteriores","No requiere","No requiere","Construcción de ambientes exteriores","No requiere","No requiere","No requiere","No requiere"]
[null,null,"ACCIÓN 5","Implementación de TICs","Implementación de TICs","Implementación de TICs","No requiere","No requiere","Implementación de TICs","No requiere","No requiere","No requiere","No requiere"]
[null,null,"ACCIÓN 6","Programa de operación y mantenimiento de la infraestructura ","Programa de operación y mantenimiento de la infraestructura ","Programa de operación y mantenimiento de la infraestructura ","No requiere","No requiere","Programa de operación y mantenimiento de la infraestructura ","No requiere","No requiere","No requiere","No requiere"]
[null,null,"ACCIÓN 7","No requiere","No requiere","No requiere","No requiere","No requiere","No requiere","No requiere","No requiere","No requiere","No requiere",null,null,null,null,null,null,null,null,null,null,null,null,null,null,null,null,null,null,null,null,null,{"$f":"+INDEX(Base_datos!K2:N4,coin)","v":{"$error":"#NAME?"}}]
[null,null,"ACCIÓN 8"]
[]
[null,null,"CAUSAS DIRECTAS","CAUSAS INDIRECTAS","MEDIOS FUNDAMENTALES","ACCIONES (PAQUETES DE TRABAJO)"]
[null,null,"Inadecuada oferta educativa",null,null,"Construcción de ambientes pedagógicos"]
[null,null,"Inadecuada e insuficiente oferta educativa","Infraestructura no cumple con estándares normativos","Infraestructura  cumple con estándares normativos","Construcción de ambientes administrativos"]
[null,null,"Limitada oferta educativa","Déficit de infraestructura educativa","Suficiente infraestructura educativa","Construcción de ambientes complementarios"]
[null,null,"Inadecuada gestión de los servicios educativos","Equipamiento educativo Inadecuado ","Equipamiento educativo adecuado ","Construcción de ambientes exteriores"]
[null,null,null,"Déficit de equipamiento educativo","Suficiente equipamiento educativo","Implementación de TICs"]
[null,null,null,"Limitada e inadecuada infraestructura educativa","Suficiente y adecuada infraestructura educativa","Programa de operación y mantenimiento de la infraestructura "]
[null,null,null,"Limitada e inadecuado equipamiento educativo","Suficiente y adecuado equipamiento educativo","Implementación de equipamiento educativo"]
[null,null,null,"Déficit de capacidades pedagógicas docente","Adecuadas capacidades pedagógicas docente","Implementación de equipamiento administrativo"]
[null,null,null,"Inadecuada gestión de la información educativa (matrícula, indicadores educativos)","Adecuada gestión de la información educativa (matrícula, indicadores educativos)","Programa de operación y mantenimiento del equipamiento"]
[null,null,null,"Inadecuada gestión de la información institucional (inventario de equipos, mobiliario, seguimiento desempeño pedagógico,otros)","Adecuada gestión de la información institucional (inventario de equipos, mobiliario, seguimiento desempeño pedagógico,otros)","Capacitación al personal docente"]
[null,null,null,null,null,"Protocolo de gestión de información educativa"]
[null,null,null,null,null,"Protocolo de gestión de información institucional"]

{"sheet":"D1","index":3,"n_rows":139,"n_cols":23,"rows_kept":139,"cut":false,"hidden":true,"merged":[]}
[]
["Naturaleza","Objeto ","Tipo de intervención no PIP","Servicios a intervenir","Indicador de Brecha","Indicar activo ","Zona","Región","Adjuntó","Nivel de gobierno","GOBIERNO REGINOAL","Grupo Funcional","Estado","Antigüedad","Modalidad de ejecución","Fuente de financiamiento","Mes","Año","Peligros","Medidas de Reducción de Riesgos"]
["CREACION","SERVICIO DE EDUCACIÓN INICIAL","AMPLIACIÓN MARGINAL","SERVICIO DE EDUCACIÓN INICIAL","% locales educativos con educación inicial que contiene capacidad instalada inadecuada ","SI CUENTA","Rural","Costa","Si ","GOBIERNO REGIONAL","GOBIERNO REGIONAL AMAZONAS","0103: EDUCACIÓN INICIAL","REGULAR",1,"ADMINISTRACIÓN DIRECTA","RECURSOS ORDINARIOS",1,2017,"Sismos \u0084 ",null,"ALTA","BAJO ","OPERACIONAL"]
["MEJORAMIENTO","SERVICIO DE EDUCACIÓN PRIMARIA","OPTIMIZACIÓN","SERVICIO DE EDUCACIÓN PRIMARIA","% personas no matriculadas en el nivel inicial respecto a la demanda potencial","NO CUENTA","Urbana","Sierra","No","GOBIERNO NACIONAL","GOBIERNO REGIONAL ANCASH","0104: EDUCACIÓN PRIMARIA\n","MALO",2,"ADMINISTRACIÓN INDIRECTA - POR CONTRATA","RECURSOS DIRECTAMENTE RECAUDADOS ",2,2018,"Tsunamis \u0084 ",null,"BAJA","MODERADO","CAMBIO CLIMÁTICO"]
["RECUPERACIÓN","SERVICIO DE EDUCACIÓN SECUNDARIA","OPTIMIZACIÓN (ADQ. TERRENOS)","SERVICIO DE EDUCACIÓN SECUNDARIA","% locales educativos con educación primaria que contiene capacidad instalada inadecuada ",null,null,"Selva",null,"GOBIERNO LOCAL","GOBIERNO REGIONAL APURIMAC","0105: EDUCACIÓN SECUNDARIA","MUY MALO",3,"ADMINISTRACIÓN INDIRECTA - NÚCLEO EJECUTOR"," RECURSOS POR OPERACIONES OFICIALES DE CREDITO ",3,2019,"Heladas \u0084 ",null,"MEDIA","MAYOR","MERCADO"]
["AMPLIACIÓN","SERVICIO DE EDUCACIÓN BÁSICA ALTERNATIVA","REHABILITACIÓN",null,"% personas no matriculadas en el nivel primaria respecto a la demanda potencial ",null,null,null,null,"MANCOMUNIDAD (GR, GL)","GOBIERNO REGIONAL AREQUIPA","0106: EDUCACIÓN BÁSICA ALTERNATIVA","IRRECUPERABLE",4,"ADMINISTRACIÓN INDIRECTA -OBRA POR IMPUESTOS","DONACIONES Y TRANSFERENCIAS",4,2020,"Erupciones volcánicas \u0084 ",null,null,null,"FINANCIERO"]
["MEJORAMIENTO Y AMPLIACIÓN","","REPOSICIÓN",null,"% locales educativos con educación secundaria que contiene capacidad instalada inadecuada ",null,null,null,null,null,"GOBIERNO REGIONAL AYACUCHO","0107: EDUCACIÓN BÁSICA ESPECIAL",null,5,"ADMINISTRACIÓN INDIRECTA-APP","RECURSOS DETERMINADOS",5,2021,"Sequías \u0084 ",null,null,null,"LEGAL"]
[null,null,null,null,"% personas no matriculadas en el nivel Secundaria respecto a la demanda potencial ",null,null,null,null,null,"GOBIERNO REGIONAL CAJAMARCA",null,null,6,null,null,6,2022,"Granizadas \u0084 "]
[null,null,null,null,null,null,null,null,null,null,"GOBIERNO REGIONAL CALLAO",null,null,7,null,null,7,2023,"Inundaciones"]
["Inicial",null,null,null,null,null,null,null,null,null,"GOBIERNO REGIONAL CUSCO",null,null,8,null,null,8,2024,"Huaycos","operacional, contexto de cambio climático, mercado, financiero, legal"]
["Primaria",null,null,null,null,null,null,null,null,null,"GOBIERNO REGIONAL HUANCAVELICA",null,null,9,null,null,9,2025,"Deslizamientos"]
["Secundaria",null,null,null,null,null,null,null,null,null,"GOBIERNO REGIONAL HUÁNUCO",null,null,10,null,null,10,2026,"Desertificación"]
[null,null,null,null,null,null,null,null,null,null,"GOBIERNO REGIONAL ICA",null,null,11,null,null,11,2027,"Salinización de suelos"]
[null,null,null,null,null,null,null,null,null,null,"GOBIERNO REGIONAL JUNÍN",null,null,12,null,null,12,2028]
[null,null,null,null,null,null,null,null,null,null,"GOBIERNO REGIONAL LA LIBERTAD",null,null,13,null,null,null,2029]
[null,null,null,null,null,null,null,null,null,null,"GOBIERNO REGIONAL LAMBAYEQUE",null,null,14,null,null,null,2030]
[null,null,null,null,null,null,null,null,null,null,"GOBIERNO REGIONAL LIMA",null,null,15,null,null,null,2031]
[null,null,null,null,null,null,null,null,null,null,"GOBIERNO REGIONAL LIMA METROPOLITANA",null,null,16,null,null,null,2032]
[null,null,null,null,null,null,null,null,null,null,"GOBIERNO REGIONAL LORETO",null,null,17,null,null,null,2033]
[null,null,null,null,null,null,null,null,null,null,"GOBIERNO REGIONAL MADRE DE DIOS",null,null,18,null,null,null,2034]
[null,null,null,null,null,null,null,null,null,null,"GOBIERNO REGIONAL MOQUEGUA",null,null,19,null,null,null,2035]
[null,null,null,null,null,null,null,null,null,null,"GOBIERNO REGIONAL PASCO",null,null,20,null,null,null,2036]
[null,null,null,null,null,null,null,null,null,null,"GOBIERNO REGIONAL PIURA",null,null,21,null,null,null,2037]
[null,null,null,null,null,null,null,null,null,null,"GOBIERNO REGIONAL PUNO",null,null,22,null,null,null,2038]
[null,null,null,null,null,null,null,null,null,null,"GOBIERNO REGIONAL SAN MARTÍN",null,null,23,null,null,null,2039]
[null,null,null,null,null,null,null,null,null,null,"GOBIERNO REGIONAL TACNA",null,null,24,null,null,null,2040]
[null,null,null,null,null,null,null,null,null,null,"GOBIERNO REGIONAL TUMBES",null,null,25,null,null,null,2041]
[null,null,null,null,null,null,null,null,null,null,"GOBIERNO REGIONAL UCAYALI",null,null,26,null,null,null,2042]
[null,null,"Inversiones de reposición:",null,null,null,null,null,null,null,null,null,null,27,null,null,null,2043]
[null,null,null,null,null,null,null,null,null,null,null,null,null,28,null,null,null,2044]
[null,null,"Reconstrucción total de cerco perimétrico.",null,null,null,null,null,null,null,null,null,null,29,null,null,null,2045]
[null,null,"Reconstrucción total de Aulas colapsadas.",null,null,null,null,null,null,null,null,null,null,30,null,null,null,2046]
[null,null,"Reconstrucción total de Servicios Higiénicos.",null,null,null,null,null,null,null,null,null,null,31,null,null,null,2047]
[null,null,"Reconstrucción total de edificaciones administrativas.",null,null,null,null,null,null,null,null,null,null,32,null,null,null,2048]
[null,null,"Reconstrucción total de patio y/o losa deportiva.",null,null,null,null,null,null,null,null,null,null,33,null,null,null,2049]
[null,null,"Reconstrucción de veredas y/o circulaciones (gradas rampas).",null,null,null,null,null,null,null,null,null,null,34]
[null,null,"Reconstrucción de muro de contención.",null,null,null,null,null,null,null,null,null,null,35]
[null,null,"Reposición de mobiliario educativo (mesas y sillas alumnos y docentes).",null,null,null,null,null,null,null,null,null,null,36]
[null,null,"Reposición de Equipos (computadoras).",null,null,null,null,null,null,null,null,null,null,37]
[null,null,"Reconstrucción de sistema de drenaje pluvial en el local educativo.",null,null,null,null,null,null,null,null,null,null,38]
[null,null,null,null,null,null,null,null,null,null,null,null,null,39]
[null,null,"Inversiones de rehabilitación",null,null,null,null,null,null,null,null,null,null,40]
[null,null,null,null,null,null,null,null,null,null,null,null,null,41]
[null,null,"Reforzamiento de Aulas, que presentan grietas y fisuras en su sistema estructural (columnas, vigas, muros).",null,null,null,null,null,null,null,null,null,null,42]
[null,null,"Reforzamiento de techos de aulas.",null,null,null,null,null,null,null,null,null,null,43]
[null,null,"Reforzamiento de edificaciones administrativas, que presentan grietas y fisuras en su sistema estructural.",null,null,null,null,null,null,null,null,null,null,44]
[null,null,"Rehabilitación de Servicios Higiénicos (redes sanitarias de agua y desagüe, aparatos sanitarios).",null,null,null,null,null,null,null,null,null,null,45]
[null,null,"Rehabilitación del sistema de desagüe en los locales educativos (registros, tuberías, biodigestor).",null,null,null,null,null,null,null,null,null,null,46]
[null,null,"Rehabilitación de las instalaciones eléctricas internas (redes eléctricas, tableros, pozo de tierra).",null,null,null,null,null,null,null,null,null,null,47]
[null,null,"Rehabilitación de carpintería en Aulas (cambio de puertas, cambio de ventanas).",null,null,null,null,null,null,null,null,null,null,48]
[null,null,"Reforzamiento en muros de cerco perimétrico.",null,null,null,null,null,null,null,null,null,null,49]
[null,null,"Reforzamiento en muros de contención.",null,null,null,null,null,null,null,null,null,null,50]
[null,null,"Rehabilitación de veredas y/o circulaciones (gradas rampas).",null,null,null,null,null,null,null,null,null,null,51]
[null,null,"Rehabilitación de sistema de drenaje pluvial en el local educativo.",null,null,null,null,null,null,null,null,null,null,52]
[null,null,"Rehabilitación de coberturas solares.",null,null,null,null,null,null,null,null,null,null,53]
[null,null,null,null,null,null,null,null,null,null,null,null,null,54]
[null,null,null,null,null,null,null,null,null,null,null,null,null,55]
[null,null,null,null,null,null,null,null,null,null,null,null,null,56]
[null,null,null,null,null,null,null,null,null,null,null,null,null,57]
[null,null,null,null,null,null,null,null,null,null,null,null,null,58]
[null,null,null,{"$f":"+E61&F61","v":"SERVICIO DE EDUCACIÓN INICIALCALIDAD"},"SERVICIO DE EDUCACIÓN INICIAL","CALIDAD","% locales educativos con educación inicial que contiene capacidad instalada inadecuada ","-",null,null,null,null,null,59]
[null,null,null,{"$f":"+E62&F62","v":"SERVICIO DE EDUCACIÓN PRIMARIACALIDAD"},"SERVICIO DE EDUCACIÓN PRIMARIA","CALIDAD","% locales educativos con educación primaria que contiene capacidad instalada inadecuada ","-",null,null,null,null,null,60]
[null,null,null,"SERVICIO DE EDUCACIÓN SECUNDARIACALIDAD","SERVICIO DE EDUCACIÓN SECUNDARIA","CALIDAD","% locales educativos con educación secundaria que contiene capacidad instalada inadecuada ","-",null,null,null,null,null,61]
[null,null,null,"SERVICIO DE EDUCACIÓN INICIALCOBERTURA","SERVICIO DE EDUCACIÓN INICIAL","COBERTURA","% personas no matriculadas en el nivel inicial respecto a la demanda potencial","-",null,null,null,null,null,62]
[null,null,null,"SERVICIO DE EDUCACIÓN PRIMARIACOBERTURA","SERVICIO DE EDUCACIÓN PRIMARIA","COBERTURA","% personas no matriculadas en el nivel primaria respecto a la demanda potencial ","-",null,null,null,null,null,63]
[null,null,null,"SERVICIO DE EDUCACIÓN SECUNDARIACOBERTURA","SERVICIO DE EDUCACIÓN SECUNDARIA","COBERTURA","% personas no matriculadas en el nivel Secundaria respecto a la demanda potencial ","-",null,null,null,null,null,64]
[null,null,null,"SERVICIO DE EDUCACIÓN INICIALCOBERTURA","SERVICIO DE EDUCACIÓN INICIAL","COBERTURA","% personas no matriculadas en el nivel inicial respecto a la demanda potencial","-",null,null,null,null,null,65]
[null,null,null,"SERVICIO DE EDUCACIÓN PRIMARIACOBERTURA","SERVICIO DE EDUCACIÓN PRIMARIA","COBERTURA","% personas no matriculadas en el nivel primaria respecto a la demanda potencial ","-",null,null,null,null,null,66]
[null,null,null,"SERVICIO DE EDUCACIÓN SECUNDARIACOBERTURA","SERVICIO DE EDUCACIÓN SECUNDARIA","COBERTURA","% personas no matriculadas en el nivel Secundaria respecto a la demanda potencial ","-",null,null,null,null,null,67]
[null,null,null,"SERVICIO DE EDUCACIÓN INICIALCALIDAD Y COBERTURA","SERVICIO DE EDUCACIÓN INICIAL","CALIDAD Y COBERTURA","% locales educativos con educación inicial que contiene capacidad instalada inadecuada ","% personas no matriculadas en el nivel inicial respecto a la demanda potencial",null,null,null,null,null,68]
[null,null,null,"SERVICIO DE EDUCACIÓN PRIMARIACALIDAD Y COBERTURA","SERVICIO DE EDUCACIÓN PRIMARIA","CALIDAD Y COBERTURA","% locales educativos con educación primaria que contiene capacidad instalada inadecuada ","% personas no matriculadas en el nivel primaria respecto a la demanda potencial ",null,null,null,null,null,69]
[null,null,null,"SERVICIO DE EDUCACIÓN SECUNDARIACALIDAD Y COBERTURA","SERVICIO DE EDUCACIÓN SECUNDARIA","CALIDAD Y COBERTURA","% locales educativos con educación secundaria que contiene capacidad instalada inadecuada ","% personas no matriculadas en el nivel Secundaria respecto a la demanda potencial ",null,null,null,null,null,70]
[null,null,null,null,null,null,null,null,null,null,null,null,null,71]
[null,null,null,null,null,null,null,null,null,null,null,null,null,72]
[null,null,null,null,null,null,null,null,null,null,null,null,null,73]
[null,null,null,"CAUSAS DIRECTAS","CAUSAS INDIRECTAS","MEDIOS FUNDAMENTALES","ACCIONES (PAQUETES DE TRABAJO)","CÓDIGO","N°","PRODUCTO",null,null,null,74]
[null,null,null,"Inadecuada oferta educativa",null,null,"Construcción de ambientes pedagógicos",{"$f":"+MID($G$76,1,2)&0&I77","v":"AC01"},1,"Infraestructura",null,null,null,75]
[null,null,null,"Inadecuada e insuficiente oferta educativa","Infraestructura no cumple con estándares normativos","Infraestructura  cumple con estándares normativos","Construcción de ambientes administrativos","AC02",2,"Infraestructura",null,null,null,76]
[null,null,null,"Limitada oferta educativa","Déficit de infraestructura educativa","Suficiente infraestructura educativa","Construcción de ambientes complementarios","AC03",3,"Infraestructura",null,null,null,77]
[null,null,null,"Inadecuada gestión de los servicios educativos","Equipamiento educativo Inadecuado ","Equipamiento educativo adecuado ","Construcción de ambientes exteriores","AC04",4,"Infraestructura",null,null,null,78]
[null,null,null,"No requiere","Déficit de equipamiento educativo","Suficiente equipamiento educativo","Implementación de TICs","AC05",5,"Infraestructura",null,null,null,79]
[null,null,null,null,"Limitada e inadecuada infraestructura educativa","Suficiente y adecuada infraestructura educativa","Programa de operación y mantenimiento de la infraestructura ","AC06",6,"Infraestructura",null,null,null,80]
[null,null,null,null,"Limitada e inadecuado equipamiento educativo","Suficiente y adecuado equipamiento educativo","Implementación de equipamiento educativo","AC07",7,"Equipamiento",null,null,null,81]
[null,null,null,null,"Déficit de capacidades pedagógicas docente","Adecuadas capacidades pedagógicas docente","Implementación de equipamiento administrativo","AC08",8,"Equipamiento",null,null,null,82]
[null,null,null,null,"Inadecuada gestión de la información educativa (matrícula, indicadores educativos)","Adecuada gestión de la información educativa (matrícula, indicadores educativos)","Programa de operación y mantenimiento del equipamiento","AC09",9,"Equipamiento",null,null,null,83]
[null,null,null,null,"Inadecuada gestión de la información institucional (inventario de equipos, mobiliario, seguimiento desempeño pedagógico,otros)","Adecuada gestión de la información institucional (inventario de equipos, mobiliario, seguimiento desempeño pedagógico,otros)","Capacitación al personal docente","AC010",10,"Capacidades",null,null,null,84]
[null,null,null,null,"No requiere",null,"Protocolo de gestión de información educativa","AC011",11,"Gestión",null,null,null,85]
[null,null,null,null,null,null,"Protocolo de gestión de información institucional","AC012",12,"Gestión",null,null,null,86]
[null,null,null,null,null,null,null,null,null,null,null,null,null,87]
[null,null,null,null,null,null,null,null,null,null,null,null,null,88]
[null,null,null,null,null,"MEDIOS FUNDAMENTALES","ACCIONES (PAQUETES DE TRABAJO)","CÓDIGO","N°","PRODUCTO",null,null,null,89]
[null,null,null,null,null,"Adecuada localización de la IE","Construcción de ambientes pedagógicos",{"$f":"+MID($G$76,1,2)&0&I92","v":"AC01"},1,"Infraestructura",{"$f":"+HLOOKUP($F$77,$F$92:$G$97,1,FALSE)","v":{"$error":"#N/A"}},null,null,90]
[null,null,null,null,null,"Adecuada localización de la IE","Construcción de ambientes administrativos","AC02",2,"Infraestructura",{"$f":"+VLOOKUP($F$77,$F$92:$G$97,3,FALSE)","v":{"$error":"#N/A"}},null,null,91]
[null,null,null,"EFECTOS DIRECTOS","EFECTOS INDIRECTOS","Adecuada localización de la IE","Construcción de ambientes complementarios","AC03",3,"Infraestructura",{"$f":"+VLOOKUP($F$77,$F$92:$G$97,2,FALSE)","v":{"$error":"#N/A"}},null,null,92]
[null,null,null,"Reducido nivel de desempeño del alumno.","Atraso escolar.","Adecuada localización de la IE","Construcción de ambientes exteriores","AC04",4,"Infraestructura",{"$f":"+VLOOKUP($F$77,$F$92:$G$97,2,FALSE)","v":{"$error":"#N/A"}},null,null,93]
[null,null,null,"Ingreso tardío al servicio educativo según nivel educativo.","Aumento de la deserción escolar","Adecuada localización de la IE","Implementación de TICs","AC05",5,"Infraestructura",{"$f":"+VLOOKUP($F$77,$F$92:$G$97,2,FALSE)","v":{"$error":"#N/A"}},null,null,94]
[null,null,null,null,"Reducido logro de aprendizaje de los alumnos.","Adecuada localización de la IE","Programa de operación y mantenimiento de la infraestructura ","AC06",6,"Infraestructura",{"$f":"+VLOOKUP($F$77,$F$92:$G$97,2,FALSE)","v":{"$error":"#N/A"}},null,null,95]
[null,null,null,null,null,null,"Implementación de equipamiento educativo","AC07",7,"Equipamiento",null,null,null,96]
[null,null,"TIPOS DE DOCUMENTOS","INVOLUCRADO","FUENTE",null,"Implementación de equipamiento administrativo","AC08",8,"Equipamiento",null,null,null,"CONTRIBUCIÓN"]
[null,null,"Acta de Compromiso de Operación y Mantenimiento","Dirección Regional de Educación (DRE)","INEI",null,"Programa de operación y mantenimiento del equipamiento","AC09",9,"Equipamiento",null,null,null,98]
[null,null,"Resolución de Alcaldía","Unidad de Gestión Educativa Local (UGEL)","ESCALE",null,"Capacitación al personal docente","AC010",10,"Capacidades",null,null,null,99]
[null,null,"Acuerdo de Concejo Municipal","Gobierno Regional","ENCUESTA DE CAMPO - ADJUNTAR A LA FICHA",null,"Protocolo de gestión de información educativa","AC011",11,"Gestión"]
[null,null,"Acuerdo de Consejo Regional","Gobierno Local","INSTITUCIÓN EDUCATIVA",null,"Protocolo de gestión de información institucional","AC012",12,"Gestión"]
[null,null,"Resolución del Gobierno Regional","Dirección de la IE","UGEL"]
[null,null,"Resolución Ministerial","APAFA","DRE","Infraestructura  cumple con estándares normativos"]
[null,null,"Resolución Directoral","Beneficiarios"]
[null,null,"Otro","Sector Privado"]
[null,null,null,"Otros"]
[]
[]
[]
[]
[]
[null,null,null,null,null,"Suficiente infraestructura educativa"]
[]
[]
[]
[null,null,null,null,null,"Equipamiento educativo adecuado "]
[null,null,null,null,null,"Suficiente equipamiento educativo"]
[null,null,null,null,null,"Suficiente y adecuada infraestructura educativa"]
[null,null,null,null,null,"Suficiente y adecuado equipamiento educativo"]
[null,null,null,null,null,"Adecuadas capacidades pedagógicas docente"]
[null,null,null,null,null,"Adecuada gestión de la información educativa (matrícula, indicadores educativos)"]
[null,null,null,null,null,"Adecuada gestión de la información institucional (inventario de equipos, mobiliario, seguimiento desempeño pedagógico,otros)"]
[]
[]
[]
[]
[null,null,null,"3.7.2. ¿ES LA UNIDAD EJECUTORA DE INVERSIONES LA RESPONSABLE DE LA OPERACIÓN Y MANTENIMIENTO DEL PROYECTO CON CARGO A SU PRESUPUESTO INSTITUCIONAL?"]
[null,null,null,"SI"]
[null,null,null,"NO"]
[null,null,null,"PARCIALMENTE"]
[null,null,null,"NO APLICA"]
[]
[]
[]
[null,null,null,"MARCO LÓGICO"]
[null,null,null,"ACTIVIDADES","INIDICADORES","MEDIOS DE VERIFICACIÓN","SUPUESTOS"]
[null,null,null,"Elaboración y aprobación de "]